{"text_format":"3","workbook":"xlsx","n_sheets":1,"sheets":["Sheet1"],"not_rendered":{"defined_names":1},"read":"whole","date_system":"1900"}

{"sheet":"Sheet1","index":0,"n_rows":76,"n_cols":20,"rows_kept":76,"merged":[[0,0,0,19],[1,0,1,19],[2,0,3,0],[2,1,3,1],[2,2,3,2],[2,3,3,3],[2,4,3,4],[2,5,2,18],[2,19,3,19]]}
["附件1"]
["毕节市2025届“优师计划”毕业生定向招聘需求计划表"]
["序号","县（区）","学段","学校名称","联系人及联系方式","“优师计划”就业需求岗位计划",{"$nulls":13},"岗位资格要求"]
[{"$nulls":5},"小计","语文","数学","英语","物理","化学","生物","地理","历史","思想政治","美术","信息技术","心理健康","体育"]
[1,"七星关区","高中","毕节四中","幸校长：15599373200，\n邮箱：bjsz101@126.com",{"$f":"SUM(G5:S5)","v":16},2,2,2,2,2,1,1,null,1,null,1,1,1,"1.取得符合应聘岗位要求的教师资格证书；2.语文学科普通话二级甲等及以上，其他学科普通话二级乙等及以上。"]
[2,"七星关区","高中","毕节六中","史校长：15885212988，\n邮箱：bjlz8268677@163.com",13,1,3,1,3,1,1,null,null,2,null,1,null,null,"1.取得符合应聘岗位要求的教师资格证书；2.语文学科普通话二级甲等及以上，其他学科普通话二级乙等及以上。"]
[3,"七星关区","初中","七星关区第二实验学校","赵老师：13885752461，\n邮箱：qesybgs@163.com",2,2,{"$nulls":12},"1.取得符合应聘岗位要求的教师资格证书；2.语文学科普通话二级甲等及以上，其他学科普通话二级乙等及以上。"]
[4,"七星关区","初中","七星关区第三实验学校","吴校长：18076089999，\n邮箱：15186123999@126.com",2,1,1,{"$nulls":11},"1.取得符合应聘岗位要求的教师资格证书；2.语文学科普通话二级甲等及以上，其他学科普通话二级乙等及以上。"]
[5,"七星关区","初中","七星关区第十实验学校","罗老师：13985366767，\n邮箱：292556022@qq.com",4,2,2,{"$nulls":11},"1.取得符合应聘岗位要求的教师资格证书；2.语文学科普通话二级甲等及以上，其他学科普通话二级乙等及以上。"]
[6,"七星关区","初中","七星关区实验中学","樊校长：15329577306，\n邮箱：249394074@qq.com",2,null,1,1,{"$nulls":10},"1.取得符合应聘岗位要求的教师资格证书；2.语文学科普通话二级甲等及以上，其他学科普通话二级乙等及以上。"]
[7,"七星关区","初中","七星关区思源实验学校","付老师：13698549398，\n邮箱：1216652906@qq.com",2,null,1,1,{"$nulls":10},"1.取得符合应聘岗位要求的教师资格证书；2.语文学科普通话二级甲等及以上，其他学科普通话二级乙等及以上。"]
[8,"七星关区","初中","七星关区甘河街道中心校","田老师：15186054900，\n邮箱：524485230@qq.com",2,null,1,{"$nulls":10},1,"1.取得符合应聘岗位要求的教师资格证书；2.语文学科普通话二级甲等及以上，其他学科普通话二级乙等及以上。"]
[9,"七星关区","初中","七星关区柏杨林街道阳光实验学校","余校长：15285731048，\n邮箱：812091474@qq.com",1,{"$nulls":11},1,null,"1.取得符合应聘岗位要求的教师资格证书；2.语文学科普通话二级甲等及以上，其他学科普通话二级乙等及以上。"]
[10,"七星关区","小学","七星关区第一实验学校","周校长：13984470668，\n邮箱：490287938@qq.com",2,1,null,1,{"$nulls":10},"1.取得符合应聘岗位要求的教师资格证书；2.语文学科普通话二级甲等及以上，其他学科普通话二级乙等及以上。"]
[11,"七星关区","小学","七星关区第二实验学校","赵老师：13885752461，\n邮箱：qesybgs@163.com",2,1,1,{"$nulls":11},"1.取得符合应聘岗位要求的教师资格证书；2.语文学科普通话二级甲等及以上，其他学科普通话二级乙等及以上。"]
[12,"七星关区","小学","七星关区第三实验学校","吴校长：18076089999，\n邮箱：15186123999@126.com",2,1,1,{"$nulls":11},"1.取得符合应聘岗位要求的教师资格证书；2.语文学科普通话二级甲等及以上，其他学科普通话二级乙等及以上。"]
[13,"七星关区","小学","七星关区第四实验学校","朱老师：15934727639，\n邮箱：604725741@qq.com",2,1,{"$nulls":10},1,null,"1.取得符合应聘岗位要求的教师资格证书；2.语文学科普通话二级甲等及以上，其他学科普通话二级乙等及以上。"]
[14,"七星关区","小学","七星关区第九实验学校","王老师：18396912117，\n邮箱：1095203459@qq.com",2,1,1,{"$nulls":11},"1.取得符合应聘岗位要求的教师资格证书；2.语文学科普通话二级甲等及以上，其他学科普通话二级乙等及以上。"]
[15,"七星关区","小学","毕节二十小","邓老师：18076161150，\n邮箱：1042464188@qq.com",2,1,1,{"$nulls":11},"1.取得符合应聘岗位要求的教师资格证书；2.语文学科普通话二级甲等及以上，其他学科普通话二级乙等及以上。"]
[16,"七星关区","小学","七星关区甘河街道中心校","田老师：15186054900，\n邮箱：524485230@qq.com",2,1,{"$nulls":11},1,"1.取得符合应聘岗位要求的教师资格证书；2.语文学科普通话二级甲等及以上，其他学科普通话二级乙等及以上。"]
[17,"七星关区","小学","七星关区柏杨林街道中心校","罗老师：13908571643",2,{"$nulls":12},2,"1.取得符合应聘岗位要求的教师资格证书；2.语文学科普通话二级甲等及以上，其他学科普通话二级乙等及以上。"]
[18,"大方","高中","大方县第一中学","赵老师：13765859101",6,1,1,null,null,1,null,1,1,1,{"$nulls":4},"1.取得符合应聘岗位要求的教师资格证书；2.语文学科普通话二级甲等及以上，其他学科普通话二级乙等及以上。"]
[19,"大方","高中","大方县第二中学","陈老师：18984733536",14,3,2,2,3,1,0,1,1,1,{"$nulls":4},"1.取得符合应聘岗位要求的教师资格证书；2.语文学科普通话二级甲等及以上，其他学科普通话二级乙等及以上。"]
[20,"大方","高中","大方县第三中学","伍老师：15085812213",10,1,1,1,1,1,2,1,1,1,{"$nulls":4},"1.取得符合应聘岗位要求的教师资格证书；2.语文学科普通话二级甲等及以上，其他学科普通话二级乙等及以上。"]
[21,"大方","高中","大方县实验高级中学","梅老师：15808570517",9,2,null,2,2,1,null,1,null,1,{"$nulls":4},"1.取得符合应聘岗位要求的教师资格证书；2.语文学科普通话二级甲等及以上，其他学科普通话二级乙等及以上。"]
[22,"大方","高中","大方县民族中学","陈老师：15718678296",4,1,1,1,{"$nulls":5},1,{"$nulls":4},"1.取得符合应聘岗位要求的教师资格证书；2.语文学科普通话二级甲等及以上，其他学科普通话二级乙等及以上。"]
[23,"大方","初中","大方县思源实验学校","余老师：13195270908",15,2,2,2,2,2,1,2,1,1,{"$nulls":4},"1.取得符合应聘岗位要求的教师资格证书；2.语文学科普通话二级甲等及以上，其他学科普通话二级乙等及以上。"]
[24,"大方","初中","大方县第四中学","罗老师：15585788588",26,3,5,4,3,2,2,1,3,3,{"$nulls":4},"1.取得符合应聘岗位要求的教师资格证书；2.语文学科普通话二级甲等及以上，其他学科普通话二级乙等及以上。"]
[25,"大方","初中","大方县文惠中学","郭老师：13984791640",10,2,1,2,null,null,1,1,1,2,{"$nulls":4},"1.取得符合应聘岗位要求的教师资格证书；2.语文学科普通话二级甲等及以上，其他学科普通话二级乙等及以上。"]
[26,"大方","初中","大方县第七中学","刘老师：18285796999",8,null,3,null,1,null,1,1,null,2,{"$nulls":4},"1.取得符合应聘岗位要求的教师资格证书；2.语文学科普通话二级甲等及以上，其他学科普通话二级乙等及以上。"]
[27,"大方","初中","大方县第八中学","刘老师：13595734725",11,1,1,1,2,null,1,1,2,2,{"$nulls":4},"1.取得符合应聘岗位要求的教师资格证书；2.语文学科普通话二级甲等及以上，其他学科普通话二级乙等及以上。"]
[28,"大方","小学","大方县思源实验学校","余老师：13195270908",6,2,2,2,{"$nulls":10},"1.取得符合应聘岗位要求的教师资格证书；2.语文学科普通话二级甲等及以上，其他学科普通话二级乙等及以上。"]
[29,"大方","小学","大方县第七中学","刘老师：18285796999",5,null,2,2,{"$nulls":5},1,{"$nulls":4},"1.取得符合应聘岗位要求的教师资格证书；2.语文学科普通话二级甲等及以上，其他学科普通话二级乙等及以上。"]
[30,"黔西市","高中","贵州省黔西第一中学","云老师：18386179994\n王老师：18212282249",{"$f":"SUM(G34:S34)","v":9},1,2,2,1,2,{"$nulls":3},1,{"$nulls":4},"1.取得符合应聘岗位要求的教师资格证书；2.语文学科普通话二级甲等及以上，其他学科普通话二级乙等及以上。"]
[31,"黔西市","高中","黔西市第二中学","徐老师：15086398112\n李老师：13124619710",13,1,2,2,1,null,2,2,2,1,{"$nulls":4},"1.取得符合应聘岗位要求的教师资格证书；2.语文学科普通话二级甲等及以上，其他学科普通话二级乙等及以上。"]
[32,"黔西市","初中","黔西市第三中学","张老师：15329579393\n苟老师：18985354803",10,3,3,3,{"$nulls":4},1,{"$nulls":5},"1.取得符合应聘岗位要求的教师资格证书；2.语文学科普通话二级甲等及以上，其他学科普通话二级乙等及以上。"]
[33,"黔西市","初中","黔西市第四中学","雷老师：13595730999",15,3,3,2,2,null,1,1,1,{"$nulls":4},2,"1.取得符合应聘岗位要求的教师资格证书；2.语文学科普通话二级甲等及以上，其他学科普通话二级乙等及以上。"]
[34,"黔西市","初中","黔西市第五中学","代老师：13885714242\n石老师：18685716466",6,null,2,null,1,null,null,1,{"$nulls":5},2,"1.取得符合应聘岗位要求的教师资格证书；2.语文学科普通话二级甲等及以上，其他学科普通话二级乙等及以上。"]
[35,"黔西市","初中","黔西市民族中学","付老师：15885247278\n陈老师：18185732796",17,3,3,3,null,2,1,null,1,3,{"$nulls":3},1,"1.取得符合应聘岗位要求的教师资格证书；2.语文学科普通话二级甲等及以上，其他学科普通话二级乙等及以上。"]
[36,"黔西市","初中","黔西市思源学校","李老师：13885760084\n黄老师：13638183361",4,null,1,1,{"$nulls":4},1,{"$nulls":4},1,"1.取得符合应聘岗位要求的教师资格证书；2.语文学科普通话二级甲等及以上，其他学科普通话二级乙等及以上。"]
[37,"黔西市","初中","黔西市锦绣学校","熊老师：13984716926",3,null,2,1,{"$nulls":10},"1.取得符合应聘岗位要求的教师资格证书；2.语文学科普通话二级甲等及以上，其他学科普通话二级乙等及以上。"]
[38,"黔西市","小学","黔西市凤凰实验学校","张老师：13638187925",15,10,2,2,{"$nulls":9},1,"1.取得符合应聘岗位要求的教师资格证书；2.语文学科普通话二级甲等及以上，其他学科普通话二级乙等及以上。"]
[39,"黔西市","小学","黔西市第一小学","张老师：18985884325",10,3,3,2,{"$nulls":5},2,{"$nulls":4},"1.取得符合应聘岗位要求的教师资格证书；2.语文学科普通话二级甲等及以上，其他学科普通话二级乙等及以上。"]
[40,"黔西市","小学","黔西市第三小学","史老师：15086503189",4,2,2,{"$nulls":11},"1.取得符合应聘岗位要求的教师资格证书；2.语文学科普通话二级甲等及以上，其他学科普通话二级乙等及以上。"]
[41,"黔西市","小学","黔西市第十二小学","王老师：13595761822\n龚老师：18184171179",6,4,2,{"$nulls":11},"1.取得符合应聘岗位要求的教师资格证书；2.语文学科普通话二级甲等及以上，其他学科普通话二级乙等及以上。"]
[42,"黔西市","小学","黔西市惠风学校","洪老师：13628574830",4,2,2,{"$nulls":11},"1.取得符合应聘岗位要求的教师资格证书；2.语文学科普通话二级甲等及以上，其他学科普通话二级乙等及以上。"]
[43,"黔西市","职中","黔西市中等职业学校","孟老师：15885210425",7,1,1,2,{"$nulls":3},1,1,1,{"$nulls":4},"1.取得符合应聘岗位要求的教师资格证书；2.语文学科普通话二级甲等及以上，其他学科普通话二级乙等及以上。"]
[44,"织金","高中","织金县第一中学","熊老师：15086326999",{"$f":"SUM(G48:S48)","v":3},{"$nulls":3},1,1,1,{"$nulls":7},"1.取得符合应聘岗位要求的教师资格证书；2.语文学科普通话二级甲等及以上，其他学科普通话二级乙等及以上。"]
[45,"织金","高中","织金县第二中学","高老师：15885272522",2,null,null,1,null,1,{"$nulls":8},"1.取得符合应聘岗位要求的教师资格证书；2.语文学科普通话二级甲等及以上，其他学科普通话二级乙等及以上。"]
[46,"织金","高中","织金县第三中学","能老师：18744914992",2,null,1,null,1,{"$nulls":9},"1.取得符合应聘岗位要求的教师资格证书；2.语文学科普通话二级甲等及以上，其他学科普通话二级乙等及以上。"]
[47,"织金","高中","织金县第四中学","王老师：13638196692",2,null,null,1,null,1,{"$nulls":8},"1.取得符合应聘岗位要求的教师资格证书；2.语文学科普通话二级甲等及以上，其他学科普通话二级乙等及以上。"]
[48,"织金","高中","织金县第五中学","赵老师：17808627252",3,null,2,null,1,{"$nulls":9},"1.取得符合应聘岗位要求的教师资格证书；2.语文学科普通话二级甲等及以上，其他学科普通话二级乙等及以上。"]
[49,"织金","高中","织金县第九中学","雷老师：13885783110",2,null,1,null,1,{"$nulls":9},"1.取得符合应聘岗位要求的教师资格证书；2.语文学科普通话二级甲等及以上，其他学科普通话二级乙等及以上。"]
[50,"织金","初中","织金县第六中学","魏老师：13984475086",6,1,2,{"$nulls":4},1,1,1,{"$nulls":4},"1.取得符合应聘岗位要求的教师资格证书；2.语文学科普通话二级甲等及以上，其他学科普通话二级乙等及以上。"]
[51,"织金","小学","织金县第二小学","张老师：18212762710",2,null,null,2,{"$nulls":10},"1.取得符合应聘岗位要求的教师资格证书；2.语文学科普通话二级甲等及以上，其他学科普通话二级乙等及以上。"]
[52,"织金","小学","织金县第三小学","高老师：18396985819",1,1,{"$nulls":12},"1.取得符合应聘岗位要求的教师资格证书；2.语文学科普通话二级甲等及以上，其他学科普通话二级乙等及以上。"]
[53,"织金","小学","织金县第四小学","卢老师：15284699394",1,1,{"$nulls":12},"1.取得符合应聘岗位要求的教师资格证书；2.语文学科普通话二级甲等及以上，其他学科普通话二级乙等及以上。"]
[54,"织金","小学","织金县第五小学","马老师：15117510889",2,2,{"$nulls":12},"1.取得符合应聘岗位要求的教师资格证书；2.语文学科普通话二级甲等及以上，其他学科普通话二级乙等及以上。"]
[55,"织金","小学","织金县第八小学","李老师：13885737513",2,null,1,1,{"$nulls":10},"1.取得符合应聘岗位要求的教师资格证书；2.语文学科普通话二级甲等及以上，其他学科普通话二级乙等及以上。"]
[56,"织金","小学","织金县双堰街道中心学校","米老师：13885713832",2,1,null,1,{"$nulls":10},"1.取得符合应聘岗位要求的教师资格证书；2.语文学科普通话二级甲等及以上，其他学科普通话二级乙等及以上。"]
[57,"纳雍县","高中","纳雍一中","石老师：18985350733",{"$f":"SUM(G61:S61)","v":5},null,1,1,1,1,1,{"$nulls":7},"1.取得符合应聘岗位要求的教师资格证书；2.语文学科普通话二级甲等及以上，其他学科普通话二级乙等及以上。"]
[58,"纳雍县","高中","纳雍县第五中学","郑老师：15085779975",10,2,3,0,2,1,0,1,null,1,{"$nulls":4},"1.取得符合应聘岗位要求的教师资格证书；2.语文学科普通话二级甲等及以上，其他学科普通话二级乙等及以上。"]
[59,"纳雍县","高中","纳雍县第六中学","王老师：13984560937",20,2,3,2,3,3,2,2,2,1,{"$nulls":4},"1.取得符合应聘岗位要求的教师资格证书；2.语文学科普通话二级甲等及以上，其他学科普通话二级乙等及以上。"]
[60,"纳雍县","初中","纳雍二中","靳老师：15597962000",10,2,2,2,2,null,1,null,1,{"$nulls":5},"1.取得符合应聘岗位要求的教师资格证书；2.语文学科普通话二级甲等及以上，其他学科普通话二级乙等及以上。"]
[61,"纳雍县","小学","纳雍天河第二实验学校","张老师：15934760926",15,2,8,3,{"$nulls":5},2,{"$nulls":4},"1.取得符合应聘岗位要求的教师资格证书；2.语文学科普通话二级甲等及以上，其他学科普通话二级乙等及以上。"]
[62,"纳雍县","小学","纳雍天河实验学校","王老师：13984788868",10,4,4,1,{"$nulls":5},1,{"$nulls":4},"1.取得符合应聘岗位要求的教师资格证书；2.语文学科普通话二级甲等及以上，其他学科普通话二级乙等及以上。"]
[63,"纳雍县","小学","纳雍县第一实验小学","杨老师：15519334666",5,2,2,1,{"$nulls":10},"1.取得符合应聘岗位要求的教师资格证书；2.语文学科普通话二级甲等及以上，其他学科普通话二级乙等及以上。"]
[64,"威宁县","高中","威宁民族中学","王老师：13087479903 ",2,{"$nulls":4},2,{"$nulls":8},"1.取得符合应聘岗位要求的教师资格证书；2.语文学科普通话二级甲等及以上，其他学科普通话二级乙等及以上。"]
[65,"威宁县","高中","威宁自治县第四中学","潘老师：15121527981",2,null,1,null,1,{"$nulls":9},"1.取得符合应聘岗位要求的教师资格证书；2.语文学科普通话二级甲等及以上，其他学科普通话二级乙等及以上。"]
[66,"威宁县","高中","威宁自治县第六中学","赵老师：18798123608",2,1,null,1,{"$nulls":10},"1.取得符合应聘岗位要求的教师资格证书；2.语文学科普通话二级甲等及以上，其他学科普通话二级乙等及以上。"]
[67,"威宁县","高中","威宁自治县第七中学","赵老师：15085182558",2,null,1,null,null,1,{"$nulls":8},"1.取得符合应聘岗位要求的教师资格证书；2.语文学科普通话二级甲等及以上，其他学科普通话二级乙等及以上。"]
[68,"威宁县","高中","威宁自治县第八中学","张老师：15117642592",2,null,2,{"$nulls":11},"1.取得符合应聘岗位要求的教师资格证书；2.语文学科普通话二级甲等及以上，其他学科普通话二级乙等及以上。"]
[69,"威宁县","高中","威宁自治县第九中学","刘老师：18386158957",2,null,2,{"$nulls":11},"1.取得符合应聘岗位要求的教师资格证书；2.语文学科普通话二级甲等及以上，其他学科普通话二级乙等及以上。"]
[70,"威宁县","高中","毕节第三实验高级中学","张老师：13628573527",2,{"$nulls":3},1,{"$nulls":4},1,{"$nulls":4},"1.取得符合应聘岗位要求的教师资格证书；2.语文学科普通话二级甲等及以上，其他学科普通话二级乙等及以上。"]
[71,"赫章县","高中","赫章县第一中学","吕老师：18744902349",3,null,1,1,1,{"$nulls":9},"1.取得符合应聘岗位要求的教师资格证书；2.语文学科普通话二级甲等及以上，其他学科普通话二级乙等及以上。"]
[72,"赫章县","高中","赫章县西城区高级中学","侯老师：15883932781",5,null,1,2,1,{"$nulls":6},1,null,null,"1.取得符合应聘岗位要求的教师资格证书；2.语文学科普通话二级甲等及以上，其他学科普通话二级乙等及以上。"]